[Event "33rd Pula Open 2019"]
[Site "Pula"]
[Date "2019.06.24"]
[Round "3.13"]
[White "Markowski, Damian"]
[Black "Kozarcanin, Sead"]
[Result "1-0"]
[ECO "C54"]
[WhiteElo "2290"]
[BlackElo "1975"]
[Annotator "NA"]
[PlyCount "65"]
[EventDate "2019.06.22"]
[EventType "swiss"]
[EventCountry "CRO"]
[SourceTitle "playchess.com"]
[Source "ChessBase"]
[SourceQuality "1"]
[TimeControl "5400+30"]

1. e4 {[%emt 0:00:30]} e5 {[%emt 0:00:30]} 2. Nf3 {[%emt 0:00:00]} Nc6 {[%emt 0:00:30]} 3. Bc4 {[%emt 0:00:00]} Bc5 {[%emt 0:00:30]} 4. O-O {[%emt 0:01:30]} Nf6 {[%emt 0:00:30]} 5. d3 {[%emt 0:00:30]} d6 {[%emt 0:00:00]} 6. c3 {[%emt 0:00:30]} Bg4 {[%emt 0:02:00]} 7. Nbd2 {[%emt 0:04:30]} O-O {[%emt 0:01:30]} 8. Re1 {[%emt 0:01:30]} Ne7 {[%emt 0:02:30]} 9. h3 {[%emt 0:04:30]} Bh5 {[%emt 0:02:30]} 10. Nf1 {[%emt 0:01:30]} c6 {[%emt 0:00:30]} 11. Bb3 {[%emt 0:04:30]} a5 {[%emt 0:00:30]} 12. Ng3 {[%emt 0:12:30]} Qb6 {[%emt 0:02:30]} 13. Qe2 {[%emt 0:02:30]} a4 {[%emt 0:00:30]} 14. Bc2 {[%emt 0:00:00]} h6 {[%emt 0:03:30]} 15. Rb1 {[%emt 0:03:00]} g5 {[%emt 0:07:30]} 16. Nxh5 {[%emt 0:02:30]} Nxh5 {[%emt 0:00:00]} 17. d4 {[%emt 0:00:30]} exd4 {[%emt 0:00:00]} 18. cxd4 {[%emt 0:03:30]} Bb4 {[%emt 0:02:30]} 19. Rd1 {[%emt 0:00:30]} Ng6 {[%emt 0:01:30]} 20. a3 {[%emt 0:02:30]} Nhf4 {[%emt 0:04:30]} 21. Qe3 {[%emt 0:03:30]} Ba5 {[%emt 0:03:30]} 22. g3 {[%emt 0:02:30]} Nh5 {[%emt 0:04:30]} 23. h4 {[%emt 0:06:30]} Qd8 {[%emt 0:15:30]} 24. hxg5 {[%emt 0:00:30]} hxg5 {[%emt 0:00:30]} 25. Kg2 {[%emt 0:01:30]} g4 {[%emt 0:08:30]} 26. Nh2 {[%emt 0:01:30]} Nf6 {[%emt 0:07:30]} 27. e5 {[%emt 0:03:30]} Nd5 {[%emt 0:05:30]} 28. Qh6 {[%emt 0:00:30]} Qd7 {[%emt 0:04:57]} 29. Qh5 {[%emt 0:00:30]} Rfd8 {[%emt 0:04:26]} 30. Nxg4 {[%emt 0:00:30]} Kf8 {[%emt 0:03:02]} 31. Bf5 {[%emt 0:00:30]} Qc7 {[%emt 0:00:33]} 32. e6 {[%emt 0:02:30]} Nde7 {[%emt 0:10:25]} 33. Bh6+ {[%emt 0:01:30]} 1-0

[Event "33rd Pula Open 2019"]
[Site "Pula"]
[Date "2019.06.24"]
[Round "3.14"]
[White "Klaric, Zoran"]
[Black "Halfhide, Sebastian"]
[Result "1/2-1/2"]
[ECO "A02"]
[WhiteElo "2086"]
[BlackElo "2286"]
[Annotator "NA"]
[PlyCount "62"]
[EventDate "2019.06.22"]
[EventType "swiss"]
[EventCountry "CRO"]
[SourceTitle "playchess.com"]
[Source "ChessBase"]
[SourceQuality "1"]
[TimeControl "5400+30"]

1. f4 {[%emt 0:00:00]} c5 {[%emt 0:04:30]} 2. b3 {[%emt 0:00:00]} b6 {[%emt 0:02:30]} 3. Nf3 {[%emt 0:01:30]} Bb7 {[%emt 0:00:30]} 4. e3 {[%emt 0:00:30]} e6 {[%emt 0:04:30]} 5. Bb2 {[%emt 0:02:30]} Nh6 {[%emt 0:05:30]} 6. Be2 {[%emt 0:05:30]} Nf5 {[%emt 0:01:30]} 7. O-O {[%emt 0:00:30]} Nc6 {[%emt 0:08:30]} 8. c4 {[%emt 0:04:30]} Be7 {[%emt 0:06:30]} 9. Nc3 {[%emt 0:05:30]} O-O {[%emt 0:13:30]} 10. Bd3 {[%emt 0:08:30]} Nh4 {[%emt 0:05:30]} 11. a3 {[%emt 0:11:30]} f5 {[%emt 0:06:30]} 12. Be2 {[%emt 0:13:30]} Rb8 {[%emt 0:06:30]} 13. Rb1 {[%emt 0:04:30]} a6 {[%emt 0:08:30]} 14. Qe1 {[%emt 0:00:30]} Ba8 {[%emt 0:01:30]} 15. Qg3 {[%emt 0:01:30]} Nxf3+ {[%emt 0:01:30]} 16. Bxf3 {[%emt 0:01:30]} Bf6 {[%emt 0:00:30]} 17. Na4 {[%emt 0:05:30]} d6 {[%emt 0:02:06]} 18. Bxf6 {[%emt 0:02:30]} Qxf6 {[%emt 0:00:18]} 19. Nc3 {[%emt 0:01:30]} b5 {[%emt 0:00:46]} 20. cxb5 {[%emt 0:00:30]} axb5 {[%emt 0:00:04]} 21. a4 {[%emt 0:00:30]} bxa4 {[%emt 0:01:41]} 22. bxa4 {[%emt 0:00:30]} Nb4 {[%emt 0:03:39]} 23. Nb5 {[%emt 0:01:30]} Qe7 {[%emt 0:01:54]} 24. d4 {[%emt 0:01:30]} Nd5 {[%emt 0:01:07]} 25. dxc5 {[%emt 0:00:30]} dxc5 {[%emt 0:03:41]} 26. e4 {[%emt 0:01:30]} fxe4 {[%emt 0:00:32]} 27. Bxe4 {[%emt 0:00:30]} Nb6 {[%emt 0:00:56]} 28. Bc2 {[%emt 0:00:30]} Rbd8 {[%emt 0:00:49]} 29. Rf2 {[%emt 0:02:30]} c4 {[%emt 0:00:50]} 30. Qh3 {[%emt 0:01:30]} g6 {[%emt 0:00:15]} 31. Re1 {[%emt 0:00:00]} Rf6 {[%emt 0:01:02]} 1/2-1/2

[Event "33rd Pula Open 2019"]
[Site "Pula"]
[Date "2019.06.24"]
[Round "3.15"]
[White "Kyc, Jerzy"]
[Black "Nareks, Matic"]
[Result "1-0"]
[ECO "B06"]
[WhiteElo "2279"]
[BlackElo "1937"]
[Annotator "NA"]
[PlyCount "67"]
[EventDate "2019.06.22"]
[EventType "swiss"]
[EventCountry "CRO"]
[SourceTitle "playchess.com"]
[Source "ChessBase"]
[SourceQuality "1"]
[TimeControl "5400+30"]

1. e4 {[%emt 0:00:30]} g6 {[%emt 0:00:30]} 2. d4 {[%emt 0:00:00]} d6 {[%emt 0:00:00]} 3. Nf3 {[%emt 0:00:00]} Bg7 {[%emt 0:00:00]} 4. h3 {[%emt 0:00:30]} a6 {[%emt 0:02:30]} 5. Nc3 {[%emt 0:01:30]} b5 {[%emt 0:01:30]} 6. Be3 {[%emt 0:02:30]} Bb7 {[%emt 0:02:30]} 7. Bd3 {[%emt 0:00:30]} Nd7 {[%emt 0:01:30]} 8. a4 {[%emt 0:05:30]} b4 {[%emt 0:02:30]} 9. Ne2 {[%emt 0:00:30]} c5 {[%emt 0:03:30]} 10. O-O {[%emt 0:01:30]} Rc8 {[%emt 0:00:30]} 11. Ng3 {[%emt 0:04:30]} Ngf6 {[%emt 0:04:30]} 12. c3 {[%emt 0:05:30]} c4 {[%emt 0:18:30]} 13. Bb1 {[%emt 0:00:30]} bxc3 {[%emt 0:00:30]} 14. bxc3 {[%emt 0:00:30]} O-O {[%emt 0:02:30]} 15. Qc1 {[%emt 0:08:30]} Qa5 {[%emt 0:04:30]} 16. Ra3 {[%emt 0:09:30]} Rb8 {[%emt 0:04:30]} 17. Bh6 {[%emt 0:04:30]} e5 {[%emt 0:02:30]} 18. Bxg7 {[%emt 0:00:30]} Kxg7 {[%emt 0:00:30]} 19. Qg5 {[%emt 0:00:30]} Kh8 {[%emt 0:03:30]} 20. Kh2 {[%emt 0:12:30]} Qb6 {[%emt 0:04:30]} 21. a5 {[%emt 0:13:30]} Qc7 {[%emt 0:03:30]} 22. Ra4 {[%emt 0:09:01]} exd4 {[%emt 0:06:30]} 23. cxd4 {[%emt 0:03:40]} Rfe8 {[%emt 0:01:30]} 24. Rc1 {[%emt 0:02:14]} Nxe4 {[%emt 0:00:30]} 25. Bxe4 {[%emt 0:00:17]} Bxe4 {[%emt 0:00:30]} 26. Nxe4 {[%emt 0:01:09]} Rxe4 {[%emt 0:00:00]} 27. Raxc4 {[%emt 0:00:25]} Qd8 {[%emt 0:02:00]} 28. Qxd8+ {[%emt 0:01:47]} Rxd8 {[%emt 0:00:30]} 29. Rc6 {[%emt 0:01:00]} Nb8 {[%emt 0:00:30]} 30. Rc7 {[%emt 0:04:04]} Kg7 {[%emt 0:01:30]} 31. Ng5 {[%emt 0:00:53]} Re2 {[%emt 0:01:30]} 32. Rxf7+ {[%emt 0:00:14]} Kh6 {[%emt 0:00:30]} 33. f4 {[%emt 0:00:36]} Rh8 {[%emt 0:00:30]} 34. Rcc7 {[%emt 0:00:06]} 1-0

[Event "33rd Pula Open 2019"]
[Site "Pula"]
[Date "2019.06.24"]
[Round "4.1"]
[White "Trkulja, Goran"]
[Black "Saric, Ante"]
[Result "0-1"]
[ECO "B31"]
[WhiteElo "2299"]
[BlackElo "2542"]
[Annotator "ChessBase"]
[PlyCount "58"]
[EventDate "2019.06.22"]
[EventType "swiss"]
[EventCountry "CRO"]
[SourceTitle "playchess.com"]
[Source "ChessBase"]
[SourceQuality "1"]
[TimeControl "5400+30"]

1. e4 {[%emt 0:00:30]} c5 {[%emt 0:01:30]} 2. Nc3 {[%emt 0:02:30]} Nc6 {[%emt 0:00:30]} 3. Nf3 {[%emt 0:00:30]} g6 {[%emt 0:00:30]} 4. Bb5 {[%emt 0:01:30]} Bg7 {[%emt 0:03:30]} 5. O-O {[%emt 0:00:30]} Nd4 {[%emt 0:03:30]} 6. Re1 {[%emt 0:10:30]} Nxb5 {[%emt 0:05:30]} 7. Nxb5 {[%emt 0:00:00]} d6 {[%emt 0:14:30]} 8. e5 {[%emt 0:09:00]} dxe5 {[%emt 0:02:30]} 9. Nxe5 {[%emt 0:01:30]} Nf6 {[%emt 0:00:00]} 10. d3 {[%emt 0:02:30]} O-O {[%emt 0:01:00]} 11. Be3 {[%emt 0:01:30]} Nd7 {[%emt 0:04:30]} 12. Bf4 {[%emt 0:11:30]} f6 {[%emt 0:15:30]} 13. Nc4 {[%emt 0:01:30]} e5 {[%emt 0:00:30]} 14. Bd2 {[%emt 0:00:30]} Nb6 {[%emt 0:03:30]} 15. Ba5 {[%emt 0:05:30]} Qd7 {[%emt 0:01:30]} 16. Ncd6 {[%emt 0:06:30]} Nd5 {[%emt 0:04:30]} 17. Qf3 {[%emt 0:07:30]} Ne7 {[%emt 0:01:30]} 18. d4 {[%emt 0:11:30]} Nc6 {[%emt 0:03:30]} 19. Qd5+ {[%emt 0:06:58]} Kh8 {[%emt 0:03:30]} 20. dxe5 {[%emt 0:01:19]} Nxa5 {[%emt 0:02:30]} 21. e6 {[%emt 0:03:47]} Qe7 {[%emt 0:00:30]} 22. Rad1 {[%emt 0:03:10]} Nc6 {[%emt 0:01:30]} 23. f4 {[%emt 0:03:28]} f5 {[%emt 0:00:30]} 24. Nf7+ {[%emt 0:00:27]} Kg8 {[%emt 0:00:30]} 25. Nbd6 {[%emt 0:01:49]} Nd4 {[%emt 0:02:30]} 26. c3 {[%emt 0:05:20]} Bxe6 {[%emt 0:00:30]} 27. Ng5 {[%emt 0:00:59]} Bxd5 {[%emt 0:03:55]} 28. Rxe7 {[%emt 0:00:07]} Bf6 {[%emt 0:02:16]} 29. Re3 {[%emt 0:01:31]} Rad8 {[%emt 0:01:48]} 0-1

[Event "33rd Pula Open 2019"]
[Site "Pula"]
[Date "2019.06.24"]
[Round "4.2"]
[White "Markowski, Damian"]
[Black "Jovanovic, Zoran"]
[Result "0-1"]
[ECO "C44"]
[WhiteElo "2290"]
[BlackElo "2503"]
[Annotator "ChessBase"]
[PlyCount "38"]
[EventDate "2019.06.22"]
[EventType "swiss"]
[EventCountry "CRO"]
[SourceTitle "playchess.com"]
[Source "ChessBase"]
[SourceQuality "1"]
[TimeControl "5400+30"]

1. e4 {[%emt 0:00:00]} d6 {[%emt 0:00:30]} 2. d4 {[%emt 0:00:00]} Nf6 {[%emt 0:00:30]} 3. Bd3 {[%emt 0:00:30]} e5 {[%emt 0:00:30]} 4. c3 {[%emt 0:00:30]} Nc6 {[%emt 0:00:00]} 5. Nf3 {[%emt 0:00:30]} Bg4 {[%emt 0:00:00]} 6. Be3 {[%emt 0:01:30]} d5 {[%emt 0:00:30]} 7. Qb3 {[%emt 0:28:30]} exd4 {[%emt 0:13:30]} 8. cxd4 {[%emt 0:08:30]} Bb4+ {[%emt 0:06:30]} 9. Nc3 {[%emt 0:00:30]} dxe4 {[%emt 0:07:30]} 10. Ng5 {[%emt 0:00:30]} Qe7 {[%emt 0:01:30]} 11. Bb5 {[%emt 0:10:30]} O-O {[%emt 0:01:30]} 12. a3 {[%emt 0:01:30]} Bxc3+ {[%emt 0:06:30]} 13. bxc3 {[%emt 0:00:30]} a6 {[%emt 0:00:30]} 14. Bxc6 {[%emt 0:03:30]} bxc6 {[%emt 0:00:30]} 15. Qb4 {[%emt 0:02:30]} Qd7 {[%emt 0:02:30]} 16. O-O {[%emt 0:01:30]} h6 {[%emt 0:00:30]} 17. Nxe4 {[%emt 0:00:30]} Nxe4 {[%emt 0:00:00]} 18. f3 {[%emt 0:00:00]} Nf6 {[%emt 0:00:00]} 19. fxg4 {[%emt 0:00:00]} Nd5 {[%emt 0:00:30]} 0-1

[Event "33rd Pula Open 2019"]
[Site "Pula"]
[Date "2019.06.24"]
[Round "4.3"]
[White "Kyc, Jerzy"]
[Black "Fercec, Nenad"]
[Result "1-0"]
[ECO "B94"]
[WhiteElo "2279"]
[BlackElo "2446"]
[Annotator "NA"]
[PlyCount "51"]
[EventDate "2019.06.22"]
[EventType "swiss"]
[EventCountry "CRO"]
[SourceTitle "playchess.com"]
[Source "ChessBase"]
[SourceQuality "1"]
[TimeControl "5400+30"]

1. e4 {[%emt 0:00:00]} c5 {[%emt 0:00:00]} 2. Nf3 {[%emt 0:00:00]} d6 {[%emt 0:00:00]} 3. d4 {[%emt 0:00:00]} cxd4 {[%emt 0:00:30]} 4. Nxd4 {[%emt 0:00:00]} Nf6 {[%emt 0:00:30]} 5. Nc3 {[%emt 0:00:00]} a6 {[%emt 0:00:30]} 6. Bg5 {[%emt 0:00:00]} Nbd7 {[%emt 0:00:30]} 7. Bc4 {[%emt 0:00:30]} g6 {[%emt 0:05:30]} 8. f3 {[%emt 0:03:30]} Bg7 {[%emt 0:00:30]} 9. Qd2 {[%emt 0:00:00]} O-O {[%emt 0:04:30]} 10. O-O-O {[%emt 0:02:00]} Ne5 {[%emt 0:00:00]} 11. Bb3 {[%emt 0:00:30]} Bd7 {[%emt 0:01:00]} 12. Bh6 {[%emt 0:04:30]} Bxh6 {[%emt 0:03:30]} 13. Qxh6 {[%emt 0:00:30]} Rc8 {[%emt 0:00:30]} 14. h4 {[%emt 0:01:30]} Rxc3 {[%emt 0:01:30]} 15. bxc3 {[%emt 0:02:30]} Qa5 {[%emt 0:00:30]} 16. Kb1 {[%emt 0:04:30]} Qxc3 {[%emt 0:01:30]} 17. Ne2 {[%emt 0:04:30]} Qc5 {[%emt 0:05:30]} 18. h5 {[%emt 0:00:30]} Nc4 {[%emt 0:05:30]} 19. hxg6 {[%emt 0:00:30]} fxg6 {[%emt 0:00:30]} 20. e5 {[%emt 0:00:30]} Nh5 {[%emt 0:01:30]} 21. g4 {[%emt 0:01:30]} Rxf3 {[%emt 0:00:30]} 22. gxh5 {[%emt 0:01:30]} Rxb3+ {[%emt 0:00:30]} 23. axb3 {[%emt 0:00:30]} Na3+ {[%emt 0:02:30]} 24. Kb2 {[%emt 0:00:30]} Qxc2+ {[%emt 0:00:30]} 25. Kxa3 {[%emt 0:00:30]} b5 {[%emt 0:01:30]} 26. Qd2 {[%emt 0:00:30]} 1-0

[Event "33rd Pula Open 2019"]
[Site "Pula"]
[Date "2019.06.24"]
[Round "4.4"]
[White "Filipovic, Branko"]
[Black "Tisaj, Domen"]
[Result "1/2-1/2"]
[ECO "B22"]
[WhiteElo "2371"]
[BlackElo "2232"]
[Annotator "NA"]
[PlyCount "96"]
[EventDate "2019.06.22"]
[EventType "swiss"]
[EventCountry "CRO"]
[SourceTitle "playchess.com"]
[Source "ChessBase"]
[SourceQuality "1"]
[TimeControl "5400+30"]

1. e4 {[%emt 0:00:00]} c5 {[%emt 0:00:00]} 2. Nf3 {[%emt 0:00:00]} Nc6 {[%emt 0:00:00]} 3. c3 {[%emt 0:00:00]} Nf6 {[%emt 0:00:30]} 4. e5 {[%emt 0:00:00]} Nd5 {[%emt 0:00:30]} 5. Bc4 {[%emt 0:00:30]} Nb6 {[%emt 0:00:00]} 6. Bb3 {[%emt 0:00:30]} d5 {[%emt 0:00:00]} 7. exd6 {[%emt 0:00:30]} Qxd6 {[%emt 0:00:30]} 8. d4 {[%emt 0:03:30]} cxd4 {[%emt 0:00:30]} 9. Na3 {[%emt 0:00:30]} Be6 {[%emt 0:13:30]} 10. Nb5 {[%emt 0:05:30]} Qd7 {[%emt 0:00:30]} 11. Bxe6 {[%emt 0:05:30]} Qxe6+ {[%emt 0:00:00]} 12. Be3 {[%emt 0:00:30]} Qd7 {[%emt 0:09:00]} 13. Nbxd4 {[%emt 0:03:30]} e6 {[%emt 0:02:30]} 14. O-O {[%emt 0:02:30]} Be7 {[%emt 0:01:30]} 15. Nxc6 {[%emt 0:09:30]} Qxc6 {[%emt 0:01:30]} 16. Qe2 {[%emt 0:09:30]} Bf6 {[%emt 0:03:30]} 17. Bd4 {[%emt 0:04:30]} Bxd4 {[%emt 0:01:30]} 18. Nxd4 {[%emt 0:00:30]} Qc4 {[%emt 0:00:30]} 19. Qf3 {[%emt 0:05:30]} Qd5 {[%emt 0:00:30]} 20. Rfd1 {[%emt 0:01:30]} Qxf3 {[%emt 0:00:30]} 21. Nxf3 {[%emt 0:00:00]} Rc8 {[%emt 0:01:30]} 22. a4 {[%emt 0:01:00]} Ke7 {[%emt 0:02:30]} 23. a5 {[%emt 0:00:30]} Nd5 {[%emt 0:01:30]} 24. a6 {[%emt 0:02:30]} b6 {[%emt 0:07:30]} 25. Nd4 {[%emt 0:00:30]} Rc5 {[%emt 0:01:30]} 26. g3 {[%emt 0:07:30]} Rd8 {[%emt 0:02:30]} 27. Rd3 {[%emt 0:01:30]} Ke8 {[%emt 0:07:30]} 28. f4 {[%emt 0:05:30]} Nc7 {[%emt 0:01:30]} 29. Re3 {[%emt 0:01:30]} Nb5 {[%emt 0:01:30]} 30. Nb3 {[%emt 0:02:30]} Rcd5 {[%emt 0:02:30]} 31. Ree1 {[%emt 0:03:30]} g6 {[%emt 0:04:30]} 32. Kf2 {[%emt 0:02:30]} Rd3 {[%emt 0:00:00]} 33. Re5 {[%emt 0:00:30]} Nd6 {[%emt 0:04:00]} 34. Nd4 {[%emt 0:02:30]} Nf5 {[%emt 0:00:30]} 35. Nc6 {[%emt 0:01:30]} R8d7 {[%emt 0:00:30]} 36. Re2 {[%emt 0:00:30]} R3d6 {[%emt 0:04:30]} 37. Ne5 {[%emt 0:00:42]} Rd8 {[%emt 0:00:30]} 38. Ra4 {[%emt 0:03:02]} Ne7 {[%emt 0:01:30]} 39. Nc4 {[%emt 0:01:10]} Rd1 {[%emt 0:00:30]} 40. Na3 {[%emt 0:00:48]} R8d5 {[%emt 0:04:30]} 41. Nc2 {[%emt 0:02:17]} R1d2 {[%emt 0:01:30]} 42. Nd4 {[%emt 0:00:53]} Rxe2+ {[%emt 0:00:30]} 43. Kxe2 {[%emt 0:00:02]} Kd7 {[%emt 0:00:30]} 44. b4 {[%emt 0:02:58]} e5 {[%emt 0:02:03]} 45. fxe5 {[%emt 0:00:15]} Rxe5+ {[%emt 0:00:01]} 46. Kd3 {[%emt 0:00:53]} Nd5 {[%emt 0:02:02]} 47. c4 {[%emt 0:00:30]} Ne7 {[%emt 0:00:30]} 48. b5 {[%emt 0:00:30]} Nc6 {[%emt 0:00:30]} 1/2-1/2

[Event "33rd Pula Open 2019"]
[Site "Pula"]
[Date "2019.06.24"]
[Round "4.6"]
[White "Bakker, Guido"]
[Black "Medak, Bojan"]
[Result "0-1"]
[ECO "B07"]
[WhiteElo "2208"]
[BlackElo "2342"]
[Annotator "NA"]
[PlyCount "78"]
[EventDate "2019.06.22"]
[EventType "swiss"]
[EventCountry "CRO"]
[SourceTitle "playchess.com"]
[Source "ChessBase"]
[SourceQuality "1"]
[TimeControl "5400+30"]

1. d4 {[%emt 0:00:00]} d6 {[%emt 0:00:00]} 2. e4 {[%emt 0:00:00]} Nf6 {[%emt 0:00:00]} 3. Nc3 {[%emt 0:00:30]} g6 {[%emt 0:00:30]} 4. Bg5 {[%emt 0:00:30]} Bg7 {[%emt 0:01:30]} 5. Qd2 {[%emt 0:00:30]} h6 {[%emt 0:00:30]} 6. Bh4 {[%emt 0:00:30]} g5 {[%emt 0:00:00]} 7. Bg3 {[%emt 0:00:30]} Nh5 {[%emt 0:00:00]} 8. O-O-O {[%emt 0:00:30]} Nc6 {[%emt 0:02:30]} 9. Nge2 {[%emt 0:01:30]} e6 {[%emt 0:00:30]} 10. f3 {[%emt 0:01:30]} Nxg3 {[%emt 0:01:30]} 11. hxg3 {[%emt 0:00:30]} Bd7 {[%emt 0:02:30]} 12. f4 {[%emt 0:02:30]} Qf6 {[%emt 0:04:30]} 13. e5 {[%emt 0:05:30]} dxe5 {[%emt 0:00:30]} 14. fxe5 {[%emt 0:02:30]} Qf5 {[%emt 0:12:30]} 15. g4 {[%emt 0:13:30]} Qxg4 {[%emt 0:09:30]} 16. g3 {[%emt 0:05:30]} Ne7 {[%emt 0:11:30]} 17. Bg2 {[%emt 0:07:30]} Bc6 {[%emt 0:05:30]} 18. Bh3 {[%emt 0:03:30]} Qf3 {[%emt 0:01:30]} 19. Rh2 {[%emt 0:03:30]} Nd5 {[%emt 0:08:30]} 20. Bg2 {[%emt 0:15:30]} Qe3 {[%emt 0:02:30]} 21. Qxe3 {[%emt 0:00:30]} Nxe3 {[%emt 0:00:00]} 22. Bxc6+ {[%emt 0:00:00]} bxc6 {[%emt 0:00:00]} 23. Re1 {[%emt 0:02:00]} c5 {[%emt 0:08:30]} 24. Nb5 {[%emt 0:10:30]} O-O {[%emt 0:05:30]} 25. Nxc7 {[%emt 0:05:35]} Rac8 {[%emt 0:00:30]} 26. Na6 {[%emt 0:00:17]} Ng4 {[%emt 0:00:30]} 27. Rhh1 {[%emt 0:00:36]} cxd4 {[%emt 0:00:30]} 28. Nxd4 {[%emt 0:02:13]} Nf2 {[%emt 0:00:30]} 29. Rhf1 {[%emt 0:02:19]} Nd3+ {[%emt 0:00:30]} 30. Kd2 {[%emt 0:00:03]} Nxe1 {[%emt 0:00:30]} 31. Rxe1 {[%emt 0:00:03]} Rfd8 {[%emt 0:00:00]} 32. c3 {[%emt 0:00:09]} Rd5 {[%emt 0:00:00]} 33. Nb4 {[%emt 0:02:08]} Rxe5 {[%emt 0:00:30]} 34. Rxe5 {[%emt 0:00:07]} Bxe5 {[%emt 0:00:30]} 35. Ndc6 {[%emt 0:00:44]} Bd6 {[%emt 0:00:30]} 36. Nxa7 {[%emt 0:00:12]} Ra8 {[%emt 0:00:30]} 37. Nb5 {[%emt 0:03:58]} Bxb4 {[%emt 0:01:30]} 38. cxb4 {[%emt 0:00:05]} Rxa2 {[%emt 0:00:00]} 39. Kc2 {[%emt 0:00:17]} Ra8 {[%emt 0:01:00]} 0-1

[Event "33rd Pula Open 2019"]
[Site "Pula"]
[Date "2019.06.24"]
[Round "4.7"]
[White "Pecnik, Leo"]
[Black "Doncevic, Dario"]
[Result "1-0"]
[ECO "B22"]
[WhiteElo "2334"]
[BlackElo "2230"]
[Annotator "NA"]
[PlyCount "61"]
[EventDate "2019.06.22"]
[EventType "swiss"]
[EventCountry "CRO"]
[SourceTitle "playchess.com"]
[Source "ChessBase"]
[SourceQuality "1"]
[TimeControl "5400+30"]

1. e4 {[%emt 0:05:30]} c5 {[%emt 0:00:30]} 2. Nf3 {[%emt 0:00:30]} Nc6 {[%emt 0:00:30]} 3. c3 {[%emt 0:00:30]} d5 {[%emt 0:08:30]} 4. exd5 {[%emt 0:00:30]} Qxd5 {[%emt 0:00:00]} 5. d4 {[%emt 0:00:30]} Bg4 {[%emt 0:04:00]} 6. dxc5 {[%emt 0:11:30]} Qxd1+ {[%emt 0:11:30]} 7. Kxd1 {[%emt 0:00:30]} e5 {[%emt 0:01:30]} 8. b4 {[%emt 0:01:30]} e4 {[%emt 0:05:30]} 9. h3 {[%emt 0:00:00]} O-O-O+ {[%emt 0:03:30]} 10. Kc2 {[%emt 0:01:00]} Bf5 {[%emt 0:03:30]} 11. g4 {[%emt 0:01:30]} Bg6 {[%emt 0:03:30]} 12. Nh4 {[%emt 0:00:30]} Be7 {[%emt 0:01:30]} 13. Nxg6 {[%emt 0:08:30]} hxg6 {[%emt 0:00:30]} 14. Nd2 {[%emt 0:01:30]} Nf6 {[%emt 0:14:30]} 15. g5 {[%emt 0:08:30]} Nd5 {[%emt 0:17:30]} 16. Nxe4 {[%emt 0:00:30]} f5 {[%emt 0:01:30]} 17. gxf6 {[%emt 0:08:30]} gxf6 {[%emt 0:00:30]} 18. Bg2 {[%emt 0:00:30]} f5 {[%emt 0:01:33]} 19. Nd6+ {[%emt 0:00:30]} Bxd6 {[%emt 0:00:35]} 20. Bxd5 {[%emt 0:03:30]} Be5 {[%emt 0:00:21]} 21. Be6+ {[%emt 0:07:30]} Kc7 {[%emt 0:00:01]} 22. Bg5 {[%emt 0:00:30]} Rde8 {[%emt 0:01:51]} 23. Bf7 {[%emt 0:00:30]} Ref8 {[%emt 0:03:35]} 24. Bd5 {[%emt 0:00:30]} f4 {[%emt 0:03:33]} 25. h4 {[%emt 0:02:30]} f3 {[%emt 0:03:41]} 26. Rab1 {[%emt 0:00:30]} Bf4 {[%emt 0:00:24]} 27. b5 {[%emt 0:02:30]} Ne5 {[%emt 0:00:30]} 28. Be7 {[%emt 0:05:30]} b6 {[%emt 0:01:39]} 29. Rb4 {[%emt 0:05:30]} bxc5 {[%emt 0:01:16]} 30. Ra4 {[%emt 0:01:30]} Kb6 {[%emt 0:03:09]} 31. Ra6+ {[%emt 0:02:38]} 1-0

[Event "33rd Pula Open 2019"]
[Site "Pula"]
[Date "2019.06.24"]
[Round "4.8"]
[White "Grishchenko, Sergey"]
[Black "Suta, Andraz"]
[Result "1/2-1/2"]
[ECO "E46"]
[WhiteElo "2411"]
[BlackElo "2195"]
[Annotator "NA"]
[PlyCount "32"]
[EventDate "2019.06.22"]
[EventType "swiss"]
[EventCountry "CRO"]
[SourceTitle "playchess.com"]
[Source "ChessBase"]
[SourceQuality "1"]
[TimeControl "5400+30"]

1. d4 {[%emt 0:00:30]} Nf6 {[%emt 0:00:00]} 2. c4 {[%emt 0:00:30]} e6 {[%emt 0:00:00]} 3. Nc3 {[%emt 0:00:30]} Bb4 {[%emt 0:00:30]} 4. e3 {[%emt 0:00:30]} O-O {[%emt 0:00:30]} 5. Nge2 {[%emt 0:01:30]} Re8 {[%emt 0:00:30]} 6. a3 {[%emt 0:04:30]} Bf8 {[%emt 0:00:30]} 7. d5 {[%emt 0:05:30]} a5 {[%emt 0:00:30]} 8. g3 {[%emt 0:00:30]} Na6 {[%emt 0:01:30]} 9. Bg2 {[%emt 0:02:30]} Nc5 {[%emt 0:00:30]} 10. b3 {[%emt 0:03:30]} exd5 {[%emt 0:00:30]} 11. cxd5 {[%emt 0:00:30]} b6 {[%emt 0:01:30]} 12. O-O {[%emt 0:05:30]} Ba6 {[%emt 0:00:30]} 13. Qc2 {[%emt 0:10:30]} Bd3 {[%emt 0:08:30]} 14. Qd1 {[%emt 0:00:30]} Ba6 {[%emt 0:05:30]} 15. Qc2 {[%emt 0:02:30]} Bd3 {[%emt 0:00:30]} 16. Qd1 {[%emt 0:00:30]} Ba6 {[%emt 0:06:30]} 1/2-1/2

[Event "33rd Pula Open 2019"]
[Site "Pula"]
[Date "2019.06.24"]
[Round "4.9"]
[White "Tratar, Marko"]
[Black "Uwira, Oliver"]
[Result "1-0"]
[ECO "A13"]
[WhiteElo "2463"]
[BlackElo "2184"]
[Annotator "ChessBase"]
[PlyCount "69"]
[EventDate "2019.06.22"]
[EventType "swiss"]
[EventCountry "CRO"]
[SourceTitle "playchess.com"]
[Source "ChessBase"]
[SourceQuality "1"]
[TimeControl "5400+30"]

1. c4 {[%emt 0:04:30]} e6 {[%emt 0:00:30]} 2. Nf3 {[%emt 0:02:30]} d5 {[%emt 0:00:30]} 3. b3 {[%emt 0:08:30]} Nf6 {[%emt 0:02:30]} 4. Bb2 {[%emt 0:00:30]} Be7 {[%emt 0:00:30]} 5. e3 {[%emt 0:03:30]} O-O {[%emt 0:02:30]} 6. Nc3 {[%emt 0:00:30]} c6 {[%emt 0:06:30]} 7. Qc2 {[%emt 0:12:30]} Nbd7 {[%emt 0:15:30]} 8. d4 {[%emt 0:12:30]} a6 {[%emt 0:06:30]} 9. Bd3 {[%emt 0:00:30]} b5 {[%emt 0:09:30]} 10. c5 {[%emt 0:04:30]} a5 {[%emt 0:02:30]} 11. a3 {[%emt 0:02:30]} Qc7 {[%emt 0:02:30]} 12. h3 {[%emt 0:09:30]} Re8 {[%emt 0:12:30]} 13. Ne2 {[%emt 0:05:30]} Nf8 {[%emt 0:03:30]} 14. Ne5 {[%emt 0:09:31]} N6d7 {[%emt 0:03:30]} 15. f4 {[%emt 0:02:18]} f6 {[%emt 0:00:30]} 16. Nxd7 {[%emt 0:01:46]} Qxd7 {[%emt 0:01:30]} 17. g4 {[%emt 0:00:48]} Bd8 {[%emt 0:00:30]} 18. Ng1 {[%emt 0:01:43]} e5 {[%emt 0:11:06]} 19. dxe5 {[%emt 0:01:20]} fxe5 {[%emt 0:00:11]} 20. Bxe5 {[%emt 0:00:24]} Bh4+ {[%emt 0:02:13]} 21. Ke2 {[%emt 0:01:33]} Bf6 {[%emt 0:01:40]} 22. Nf3 {[%emt 0:02:45]} Qe7 {[%emt 0:01:16]} 23. Rae1 {[%emt 0:06:07]} Bxe5 {[%emt 0:05:08]} 24. Nxe5 {[%emt 0:00:24]} g5 {[%emt 0:00:39]} 25. Kd1 {[%emt 0:02:16]} Ne6 {[%emt 0:05:19]} 26. Nxc6 {[%emt 0:01:35]} Qxc5 {[%emt 0:01:05]} 27. Bxh7+ {[%emt 0:00:46]} Kh8 {[%emt 0:00:05]} 28. Bg6 {[%emt 0:01:36]} Qxc2+ {[%emt 0:01:11]} 29. Kxc2 {[%emt 0:00:46]} Rf8 {[%emt 0:01:09]} 30. f5 {[%emt 0:00:39]} Bb7 {[%emt 0:00:22]} 31. Nd4 {[%emt 0:00:26]} Rac8+ {[%emt 0:00:24]} 32. Kb1 {[%emt 0:00:30]} Nxd4 {[%emt 0:00:23]} 33. exd4 {[%emt 0:00:02]} Rc3 {[%emt 0:00:22]} 34. Kb2 {[%emt 0:00:35]} b4 {[%emt 0:00:10]} 35. h4 {[%emt 0:00:33]} 1-0